bitfinex/quotes_BTCUSD_20250508
["timestamp","ask_amount","ask_price","bid_price","bid_amount"]
[1746722059731,0.50888531,100990.0,100980.0,1.01061317]
[1746722059926,0.72672796,100990.0,100980.0,0.98709747]
[1746722060361,0.7123226,100990.0,100980.0,0.50619235]
[1746722060546,0.7123226,100990.0,100980.0,0.5]
[1746722060821,0.7123226,100990.0,100980.0,0.69805902]
[1746722061024,0.9951687,100990.0,100980.0,0.5]
[1746722061172,0.7123226,100990.0,100980.0,0.5]
[1746722062771,0.7123226,100990.0,100980.0,0.69805902]
[1746722063295,0.70242083,100990.0,100980.0,0.69805902]
[1746722064123,0.70242083,100990.0,100980.0,0.5]
[1746722064345,0.69251886,100990.0,100980.0,0.69805902]
[1746722065076,0.70242063,100990.0,100980.0,0.69805902]
[1746722065684,0.71158605,100990.0,100980.0,0.69805902]
[1746722066501,0.71158605,100990.0,100980.0,0.5]
[1746722066725,0.71158605,100990.0,100980.0,0.69805902]
[1746722067673,0.71158605,100990.0,100980.0,0.5]
[1746722067969,0.70168428,100990.0,100980.0,0.5]
[1746722068201,0.70168428,100990.0,100980.0,0.69805902]
[1746722068421,0.70168428,100990.0,100980.0,1.01061278]
[1746722068422,0.35563711,100990.0,100980.0,1.01061278]
[1746722068626,0.35563711,100990.0,100980.0,1.30975888]
[1746722068627,0.01563711,100990.0,100980.0,1.30975888]
[1746722068928,0.00647169,100990.0,100980.0,1.72495888]
[1746722069180,0.00647169,100990.0,100980.0,1.44211278]
[1746722069404,0.00347169,100990.0,100980.0,1.5427797]
[1746722069849,0.00447169,100990.0,100980.0,1.5427797]
[1746722070096,0.00147169,100990.0,100980.0,1.8256258]
[1746722070296,0.00247169,100990.0,100980.0,1.8256258]
[1746722070897,0.00147169,100990.0,100980.0,1.8256258]
[1746722071098,0.00047169,100990.0,100980.0,1.8256258]
[1746722071409,0.00047169,100990.0,100980.0,1.8276258]
[1746722074721,0.00047169,100990.0,100980.0,2.7851258]
[1746722074929,0.75763547,101030.0,101020.0,0.22767678]
[1746722075101,0.7180386,101030.0,101020.0,0.51052288]
[1746722075307,0.72793606,101030.0,101020.0,0.51052288]
[1746722075520,0.72727681,101030.0,101020.0,0.52042122]
[1746722075721,0.73717437,101030.0,101020.0,0.21777834]
[1746722075951,0.70748229,101030.0,101020.0,0.51052288]
[1746722076148,0.74017466,101030.0,101020.0,0.50062464]
[1746722076462,0.73027691,101030.0,101020.0,0.50062464]
[1746722076630,0.71048229,101030.0,101020.0,0.51052337]
[1746722076831,0.71048229,101030.0,101020.0,0.53032034]
[1746722077017,0.69594144,101030.0,101020.0,0.53032034]
[1746722077418,0.69594144,101030.0,101020.0,1.03032034]
[1746722077735,0.69994144,101030.0,101020.0,1.03032034]
[1746722077898,0.69694144,101030.0,101020.0,1.03032034]
[1746722078131,0.69394144,101030.0,101020.0,1.03032034]
[1746722078348,0.00114144,101030.0,101020.0,1.03650927]
[1746722078725,0.00314144,101030.0,101020.0,1.03650927]
[1746722078926,0.00214144,101030.0,101020.0,1.03650927]
[1746722079131,0.00214144,101030.0,101020.0,1.16827619]
[1746722079401,0.00214144,101030.0,101020.0,1.56827619]
[1746722080384,0.00014144,101030.0,101020.0,1.56827619]
[1746722080808,0.0100386,101030.0,101020.0,1.27033009]
[1746722081010,0.00014144,101030.0,101020.0,1.53717619]
[1746722081956,0.00014144,101030.0,101020.0,1.53098726]
[1746722082191,0.0100387,101030.0,101020.0,1.53098726]
[1746722082416,0.0100388,101030.0,101020.0,1.43032034]
[1746722082621,0.00014144,101030.0,101020.0,1.43032034]
[1746722083225,0.00014144,101030.0,101020.0,1.56108726]
[1746722083403,0.00014144,101030.0,101020.0,1.56727571]
[1746722084924,0.00014144,101030.0,101020.0,1.54459151]
[1746722087032,0.00014144,101030.0,101020.0,1.57509151]
[1746722087240,0.00014144,101030.0,101020.0,1.55979151]
[1746722088080,0.0100386,101030.0,101020.0,1.54459151]
[1746722088423,0.00014144,101030.0,101020.0,1.54459151]
[1746722089535,0.00014144,101030.0,101020.0,1.44392459]
[1746722090718,0.0251386,101030.0,101020.0,1.16107849]
[1746722091103,0.0251388,101030.0,101020.0,1.43773614]
[1746722091322,0.04493391,101030.0,101020.0,1.10539639]
[1746722091445,0.24859794,101030.0,101020.0,1.10539639]
[1746722091798,0.24859794,101030.0,101020.0,1.14499092]
[1746722091799,0.05063645,101030.0,101020.0,1.14499092]
[1746722091933,0.07043215,101030.0,101020.0,1.13509277]
[1746722092137,0.05063645,101030.0,101020.0,1.11777834]
[1746722092386,0.26839325,101030.0,101020.0,0.69798059]
[1746722092592,0.25849579,101030.0,101020.0,0.70787952]
[1746722092794,0.61303664,101030.0,101020.0,0.69798059]
[1746722092998,0.40517799,101030.0,101020.0,1.11777834]
[1746722093571,0.40517799,101030.0,101020.0,1.11777815]
[1746722094414,0.40517799,101030.0,101020.0,1.11777825]
[1746722094831,0.4051775,101030.0,101020.0,1.11777825]
[1746722095045,0.41507535,101030.0,101020.0,1.11777825]
[1746722095194,0.39527945,101030.0,101020.0,1.12767678]
[1746722095409,0.00014144,101030.0,101020.0,1.42042122]
[1746722096179,0.00014144,101030.0,101020.0,1.13757512]
[1746722096396,0.00014144,101030.0,101020.0,1.14376415]
[1746722096562,0.00014144,101030.0,101020.0,1.42661025]
[1746722097641,0.00014144,101030.0,101020.0,1.55937717]
[1746722099740,0.00014144,101030.0,101020.0,1.56688636]
[1746722100594,0.0258387,101030.0,101020.0,1.25194026]
[1746722100817,0.01594144,101030.0,101020.0,1.141375]
[1746722100971,0.05103606,101030.0,101020.0,1.16117178]
[1746722101576,0.05103596,101030.0,101020.0,1.16117178]
[1746722102010,0.07083117,101030.0,101020.0,1.13147647]
[1746722102208,0.0411386,101030.0,101020.0,1.15127334]
[1746722102368,0.01594144,101030.0,101020.0,1.43411944]
[1746722102570,0.00014144,101030.0,101020.0,1.43411944]
[1746722104474,0.00014144,101030.0,101020.0,1.15127334]
[1746722104674,0.00014144,101030.0,101020.0,1.43411944]
[1746722107220,0.27423596,101030.0,101020.0,1.10416962]
[1746722107458,0.06637711,101030.0,101020.0,1.12396708]
[1746722107656,0.07627476,101030.0,101020.0,1.12396708]
[1746722107907,0.08617251,101030.0,101020.0,1.11406845]
[1746722108121,0.07627476,101030.0,101020.0,1.14376396]
[1746722108812,0.03647955,101030.0,101020.0,1.14376396]
[1746722109065,0.01204144,101030.0,101020.0,1.42661006]
[1746722109290,1.05188205,101040.0,101030.0,0.2177568]
[1746722109291,1.27497227,101040.0,101030.0,0.2177568]
[1746722109515,1.27497227,101040.0,101030.0,0.22765436]
[1746722109731,0.71723743,101040.0,101030.0,0.23755172]
[1746722109941,0.70269658,101040.0,101030.0,0.24374075]
[1746722110147,0.71259286,101040.0,101030.0,0.24374075]
[1746722110847,0.71259286,101040.0,101030.0,1.14374075]
[1746722111049,0.71459286,101040.0,101030.0,1.14374075]
[1746722111465,0.71559286,101040.0,101030.0,1.14374075]
[1746722111845,0.74659286,101040.0,101030.0,1.14374075]
[1746722112203,0.75648973,101040.0,101030.0,1.13384339]
[1746722112411,0.9643279,101040.0,101030.0,1.12394583]
[1746722112610,0.75648953,101040.0,101030.0,1.14374065]
[1746722113047,0.74659286,101040.0,101030.0,1.14374065]
[1746722113746,0.74659276,101040.0,101030.0,1.14374065]
[1746722114110,0.6958,101040.0,101030.0,1.14374065]
[1746722114234,0.6958,101040.0,101030.0,1.42658675]
[1746722114430,0.6958,101040.0,101030.0,1.14374065]
[1746722114637,0.73729638,101040.0,101030.0,1.14374065]
[1746722114873,0.74719286,101040.0,101030.0,1.14374065]
[1746722115075,0.96957218,101040.0,101030.0,1.11404798]
[1746722115289,0.96957218,101040.0,101030.0,0.72394573]
[1746722115583,0.97946925,101040.0,101030.0,0.72394573]
[1746722116187,0.97946925,101040.0,101030.0,0.73384338]
[1746722116350,0.77163078,101040.0,101030.0,0.73384338]
[1746722116559,0.78152785,101040.0,101030.0,0.73384338]
[1746722117176,0.96957267,101040.0,101030.0,0.70415003]
[1746722117376,1.07023959,101040.0,101030.0,0.70415003]
[1746722117636,1.07023959,101040.0,101030.0,0.71404788]
[1746722117832,1.07023959,101040.0,101030.0,0.72394563]
[1746722118036,1.07023959,101040.0,101030.0,0.71404808]
[1746722118186,1.06034301,101040.0,101030.0,0.71404798]
[1746722118390,1.06034301,101040.0,101030.0,0.72394583]
[1746722118588,0.86240161,101040.0,101030.0,0.73384358]
[1746722118884,0.86240063,101040.0,101030.0,0.74374104]
[1746722119076,1.08013567,101040.0,101030.0,0.72394583]
[1746722119239,0.88219427,101040.0,101030.0,0.7177568]
[1746722119443,1.08013567,101040.0,101030.0,0.7177568]
[1746722119613,0.88219427,101040.0,101030.0,0.7177568]
[1746722119962,0.89209134,101040.0,101030.0,0.72765445]
[1746722120187,0.85250405,101040.0,101030.0,0.72765445]
[1746722120338,0.76173371,101040.0,101030.0,0.72765445]
[1746722120544,0.76173371,101040.0,101030.0,0.73755181]
[1746722120909,0.78152725,101040.0,101030.0,0.73755191]
[1746722121328,0.95967579,101040.0,101030.0,0.697961]
[1746722121669,0.76173439,101040.0,101030.0,0.70785905]
[1746722121899,0.96957276,101040.0,101030.0,0.70785905]
[1746722122028,0.78152843,101040.0,101030.0,0.72765465]
[1746722122230,0.97946983,101040.0,101030.0,0.72765465]
[1746722122477,0.77163136,101040.0,101030.0,0.717757]
[1746722122670,0.96957276,101040.0,101030.0,0.72765485]
[1746722122877,0.97946983,101040.0,101030.0,0.7375525]
[1746722123260,0.77163136,101040.0,101030.0,0.72765485]
[1746722123502,0.77163136,101040.0,101030.0,0.717757]
[1746722123503,0.96957276,101040.0,101030.0,0.717757]
[1746722123670,0.77163136,101040.0,101030.0,0.72765485]
[1746722124042,0.77163048,101040.0,101030.0,0.74744986]
[1746722124243,0.74194085,101040.0,101030.0,0.74744986]
[1746722124897,0.76173371,101040.0,101030.0,0.74744986]
[1746722125102,0.74194085,101040.0,101030.0,0.74744986]
[1746722125302,0.75183713,101040.0,101030.0,0.74744986]
[1746722125506,0.6958,101040.0,101030.0,1.03029596]
[1746722125869,0.6958,101040.0,101030.0,1.46109596]
[1746722126274,0.6958,101040.0,101030.0,1.18443816]
[1746722126514,0.6958,101040.0,101030.0,1.45148426]
[1746722126727,0.6958,101040.0,101030.0,1.16863816]
[1746722127102,0.6958,101040.0,101030.0,1.15363816]
[1746722128390,0.6958,101040.0,101030.0,1.14744986]
[1746722128614,0.70569618,101040.0,101030.0,1.14744986]
[1746722128817,0.70569628,101040.0,101030.0,1.14744986]
[1746722129045,0.6958,101040.0,101030.0,1.14744986]
[1746722129245,0.6958,101040.0,101030.0,1.44609596]
[1746722129402,0.6958,101040.0,101030.0,1.46259596]
[1746722129972,0.003,101040.0,101030.0,1.46259596]
[1746722130679,0.003,101040.0,101030.0,1.46878394]
[1746722131685,0.003,101040.0,101030.0,1.18593784]
[1746722131865,0.003,101040.0,101030.0,1.46878394]
[1746722132873,0.003,101040.0,101030.0,1.46878376]
[1746722135620,0.003,101040.0,101030.0,1.56945068]
[1746722138127,0.003,101040.0,101030.0,1.55295068]
[1746722138334,0.003,101040.0,101030.0,1.25430458]
[1746722138956,0.003,101040.0,101030.0,1.53715068]
[1746722140230,0.003,101040.0,101030.0,1.55325068]
[1746722140432,0.003,101040.0,101030.0,1.56935068]
[1746722143494,0.73373379,101080.0,101070.0,0.22385841]
[1746722143715,0.72384133,101080.0,101070.0,0.25353942]
[1746722143881,0.73373379,101080.0,101070.0,0.75353952]
[1746722144092,0.72884133,101080.0,101070.0,0.75353893]
[1746722144497,0.73384133,101080.0,101070.0,0.75353893]
[1746722144821,0.69794133,101080.0,101070.0,1.03638503]
[1746722145031,0.70094133,101080.0,101070.0,1.03638503]
[1746722145165,0.69594133,101080.0,101070.0,1.03638503]
[1746722145606,0.69994133,101080.0,101070.0,1.03638503]
[1746722145768,0.69994133,101080.0,101070.0,0.76161988]
[1746722145974,0.69594133,101080.0,101070.0,0.76161988]
[1746722146176,0.69494133,101080.0,101070.0,0.76161988]
[1746722146379,0.72604133,101080.0,101070.0,0.76161988]
[1746722146598,0.72704133,101080.0,101070.0,0.76161988]
[1746722147050,0.71184133,101080.0,101070.0,0.76161988]
[1746722147181,0.71184133,101080.0,101070.0,1.16161988]
[1746722147670,0.71184133,101080.0,101070.0,1.47596598]
[1746722147671,0.69594133,101080.0,101070.0,1.47596598]
[1746722148016,0.00314133,101080.0,101070.0,1.47596598]
[1746722148220,0.00314133,101080.0,101070.0,1.45976598]
[1746722148670,0.00314133,101080.0,101070.0,1.44446598]
[1746722148863,0.00114133,101080.0,101070.0,1.44446598]
[1746722149453,0.00014133,101080.0,101070.0,1.44446598]
[1746722149658,0.00114133,101080.0,101070.0,1.16161988]
[1746722150061,0.00114133,101080.0,101070.0,1.15172644]
[1746722150261,0.0423336,101080.0,101070.0,1.15172644]
[1746722150716,0.24019667,101080.0,101070.0,0.9061878]
[1746722150889,0.26463086,101080.0,101070.0,0.70407045]
[1746722151087,0.27452401,101080.0,101070.0,0.70407045]
[1746722151292,0.07666084,101080.0,101070.0,0.70407045]
[1746722151468,0.27452391,101080.0,101070.0,0.70407045]
[1746722151651,0.07666084,101080.0,101070.0,0.70407045]
[1746722152265,0.06676779,101080.0,101070.0,0.70407045]
[1746722152466,0.06676779,101080.0,101070.0,0.71396458]
[1746722152730,0.06676721,101080.0,101070.0,0.72385861]
[1746722152931,0.04698218,101080.0,101070.0,0.74364618]
[1746722153232,0.03244133,101080.0,101070.0,0.75353962]
[1746722154010,0.01714133,101080.0,101070.0,0.75353962]
[1746722154656,0.00114133,101080.0,101070.0,0.75353962]
[1746722155820,0.00114133,101080.0,101070.0,1.15353962]
[1746722158801,0.03214133,101080.0,101070.0,1.15353962]
[1746722159024,0.00114133,101080.0,101070.0,1.15353962]
[1746722160295,0.00114133,101080.0,101070.0,1.43638572]
[1746722160521,0.00114133,101080.0,101070.0,1.46708572]
[1746722160736,0.00114133,101080.0,101070.0,1.85059874]
[1746722160969,0.00395795,101080.0,101070.0,1.85752792]
[1746722161207,0.00114133,101080.0,101070.0,1.85752792]
[1746722161595,0.00400612,101080.0,101070.0,1.85752792]
[1746722161597,0.00114133,101080.0,101070.0,1.85752792]
[1746722161798,0.00399709,101080.0,101070.0,5.43062792]
[1746722162050,0.00014133,101080.0,101070.0,5.43062792]
[1746722162217,0.00014133,101080.0,101070.0,5.43262792]
[1746722162579,0.00299709,101080.0,101070.0,5.43262792]
[1746722162768,0.00014133,101080.0,101070.0,2.36552792]
[1746722162981,0.00014133,101080.0,101070.0,2.18772792]
[1746722163189,0.00014133,101080.0,101070.0,2.17732792]
[1746722163408,0.00014133,101080.0,101070.0,1.98782792]
[1746722163619,0.00014133,101080.0,101070.0,3.27862792]
[1746722163833,0.00014133,101080.0,101070.0,2.00192792]
[1746722166362,0.00014133,101080.0,101070.0,2.01192792]
[1746722166592,0.00014133,101080.0,101070.0,3.49899492]
[1746722167481,0.00014133,101080.0,101070.0,3.83899492]
[1746722169532,0.07408051,101100.0,101090.0,0.22751884]
[1746722169745,0.07455144,101100.0,101090.0,0.61721966]
[1746722170059,0.07455144,101100.0,101090.0,0.62414884]
[1746722170271,0.07455144,101100.0,101090.0,1.02414884]
[1746722170673,0.07655144,101100.0,101090.0,1.02414884]
[1746722171077,0.07655144,101100.0,101090.0,1.52414884]
[1746722171751,0.07855144,101100.0,101090.0,1.52414884]
[1746722172299,0.10945144,101100.0,101090.0,1.24130293]
[1746722172523,0.10945144,101100.0,101090.0,1.1505275]
[1746722172867,0.10945144,101100.0,101090.0,1.4333736]
[1746722173646,0.10945144,101100.0,101090.0,1.14063601]
[1746722173822,0.11934195,101100.0,101090.0,1.12085245]
[1746722174017,0.3514893,101100.0,101090.0,1.11096048]
[1746722174222,0.3514893,101100.0,101090.0,0.71096048]
[1746722174856,0.6343354,101100.0,101090.0,0.7040313]
[1746722175216,0.6244446,101100.0,101090.0,0.7040313]
[1746722175417,0.6244446,101100.0,101090.0,0.5061878]
[1746722175418,1.06511152,101100.0,101090.0,0.5061878]
[1746722176069,1.07427324,101100.0,101090.0,0.5061878]
[1746722176243,1.07427324,101100.0,101090.0,0.49936949]
[1746722176452,1.07427324,101100.0,101090.0,0.49583454]
[1746722177483,0.79142714,101100.0,101090.0,0.49583454]
[1746722177682,1.07427324,101100.0,101090.0,0.49583454]
[1746722178090,1.41273273,101100.0,101090.0,0.49583454]
[1746722178280,1.35711934,101100.0,101090.0,0.49583454]
[1746722178677,1.07427324,101100.0,101090.0,0.29153678]
[1746722178881,0.57943547,101090.0,101080.0,0.19786236]
[1746722179106,0.68010239,101090.0,101080.0,0.19786236]
[1746722179309,0.68926411,101090.0,101080.0,0.19786236]
[1746722179679,0.68926411,101090.0,101080.0,0.69786236]
[1746722179882,0.97211021,101090.0,101080.0,0.5]
[1746722180082,0.68926411,101090.0,101080.0,0.5]
[1746722180330,0.97211021,101090.0,101080.0,0.5]
[1746722180590,0.68926411,101090.0,101080.0,0.69786307]
[1746722181188,0.38086172,101090.0,101080.0,0.73743449]
[1746722181430,0.12513255,101100.0,101090.0,0.1978435]
[1746722181597,0.14491444,101100.0,101090.0,0.1978435]
[1746722181773,0.44805563,101100.0,101090.0,0.1978435]
[1746722181974,0.77351478,101100.0,101090.0,0.1978435]
[1746722182160,0.43351478,101100.0,101090.0,0.1978435]
[1746722182377,0.78805563,101100.0,101090.0,0.1978435]
[1746722182571,0.59023151,101100.0,101090.0,0.6978435]
[1746722182893,0.6021227,101100.0,101090.0,0.6978435]
[1746722183098,0.48437311,101100.0,101090.0,0.70773547]
[1746722183297,0.46459229,101100.0,101090.0,0.72751864]
[1746722183623,0.45994175,101100.0,101090.0,0.72751873]
[1746722183825,0.48437311,101100.0,101090.0,0.72751893]
[1746722184120,0.46983226,101100.0,101090.0,0.71762725]
[1746722184327,0.49426381,101100.0,101090.0,0.71762755]
[1746722184486,0.49426381,101100.0,101090.0,0.72751971]
[1746722184711,0.49426381,101100.0,101090.0,0.71762755]
[1746722184915,0.49426371,101100.0,101090.0,0.71762755]
[1746722185445,0.49426371,101100.0,101090.0,0.72751933]
[1746722185659,0.49426371,101100.0,101090.0,0.71762755]
[1746722186420,0.49426371,101100.0,101090.0,0.72751933]
[1746722186617,0.45005144,101100.0,101090.0,0.73741082]
[1746722186824,0.43395144,101100.0,101090.0,0.73741082]
[1746722187044,0.41855144,101100.0,101090.0,0.73741082]
[1746722188245,0.41855144,101100.0,101090.0,0.72751933]
[1746722188444,0.42844175,101100.0,101090.0,0.75348762]
[1746722188649,0.41855144,101100.0,101090.0,0.75348762]
[1746722189095,0.41855144,101100.0,101090.0,1.15348762]
[1746722189397,0.41855144,101100.0,101090.0,1.16042106]
[1746722189692,0.42844185,101100.0,101090.0,0.74063799]
[1746722189919,0.44985144,101100.0,101090.0,0.76042125]
[1746722190128,0.46963255,101100.0,101090.0,0.72085433]
[1746722190331,0.45974185,101100.0,101090.0,0.7307463]
[1746722190544,0.45974185,101100.0,101090.0,0.75052976]
[1746722190742,0.44985144,101100.0,101090.0,0.76042125]
[1746722190950,0.44474185,101100.0,101090.0,0.76042125]
[1746722191155,0.44474185,101100.0,101090.0,0.74359632]
[1746722191354,0.46044185,101100.0,101090.0,0.74359632]
[1746722191469,0.45055144,101100.0,101090.0,0.75348781]
[1746722191924,0.07855144,101100.0,101090.0,0.75348781]
[1746722192128,0.08844175,101100.0,101090.0,0.75348781]
[1746722192552,0.12054175,101100.0,101090.0,0.75348781]
[1746722192753,0.12054175,101100.0,101090.0,0.76042333]
[1746722192980,0.1548641,101100.0,101090.0,0.72085641]
[1746722193217,0.72878401,101100.0,101090.0,0.51312074]
[1746722193570,0.72631094,101100.0,101090.0,0.71096424]
[1746722193768,1.06631094,101100.0,101090.0,0.71096424]
[1746722193962,1.06631094,101100.0,101090.0,0.70402872]
[1746722194092,1.07550262,101100.0,101090.0,0.70402872]
[1746722196761,0.79265652,101100.0,101090.0,0.70402872]
[1746722198914,0.59483259,101100.0,101090.0,0.70402872]
[1746722199111,0.57505089,101100.0,101090.0,0.52349711]
[1746722199394,0.5948318,101100.0,101090.0,0.51360523]
[1746722199823,0.6047225,101100.0,101090.0,0.52349711]
[1746722200665,0.6146135,101100.0,101090.0,0.50371306]
[1746722200994,0.6146134,101100.0,101090.0,0.51360513]
[1746722201200,0.6146134,101100.0,101090.0,0.51360523]
[1746722201398,0.6047225,101100.0,101090.0,0.51360523]
[1746722201623,0.6146135,101100.0,101090.0,0.5234973]
[1746722201796,0.6146135,101100.0,101090.0,0.51360523]
[1746722202247,0.6146135,101100.0,101090.0,0.30586956]
[1746722202248,1.08539371,101100.0,101090.0,0.30586956]
[1746722202458,1.07550301,101100.0,101090.0,0.50371306]
[1746722202662,0.79265691,101100.0,101090.0,0.50371306]
[1746722202844,0.8025481,101100.0,101090.0,0.50371306]
[1746722204294,0.60472417,101100.0,101090.0,0.50371306]
[1746722204472,0.8025481,101100.0,101090.0,0.50371306]
[1746722205410,0.59483298,101100.0,101090.0,0.50371306]
[1746722205594,0.5948319,101100.0,101090.0,0.52349681]
[1746722205769,0.6047226,101100.0,101090.0,0.52349691]
[1746722205965,0.6146135,101100.0,101090.0,0.51360513]
[1746722206165,0.6047226,101100.0,101090.0,0.53338898]
[1746722206367,0.6146136,101100.0,101090.0,0.51360523]
[1746722206596,0.6146136,101100.0,101090.0,0.5234973]
[1746722207192,0.6047226,101100.0,101090.0,0.53338927]
[1746722207403,0.6047226,101100.0,101090.0,0.52898895]
[1746722207602,0.6146134,101100.0,101090.0,0.52898895]
[1746722208406,0.6146134,101100.0,101090.0,0.51909698]
[1746722208644,0.6146134,101100.0,101090.0,0.52898895]
[1746722209189,0.6245043,101100.0,101090.0,0.50920491]
[1746722209321,0.6245043,101100.0,101090.0,0.51909698]
[1746722209730,0.81243831,101100.0,101090.0,0.49931274]
[1746722210090,0.80254761,101100.0,101090.0,0.49931274]
[1746722212560,0.79265681,101100.0,101090.0,0.49931274]
[1746722213704,0.802548,101100.0,101090.0,0.49931274]
[1746722213895,0.60472407,101100.0,101090.0,0.49931274]
[1746722214666,0.59483288,101100.0,101090.0,0.49931274]
[1746722215211,0.58494149,101100.0,101090.0,0.49931274]
[1746722215421,0.6047226,101100.0,101090.0,0.50920481]
[1746722215646,0.81243753,101100.0,101090.0,0.49931274]
[1746722216046,0.6146136,101100.0,101090.0,0.49931274]
[1746722216257,0.6146136,101100.0,101090.0,0.50920491]
[1746722216460,0.6047226,101100.0,101090.0,0.50920491]
[1746722216665,0.57505089,101100.0,101090.0,0.53888025]
[1746722216871,0.5528412,101100.0,101090.0,0.53888025]
[1746722217073,0.5627318,101100.0,101090.0,0.52898876]
[1746722217281,0.56273171,101100.0,101090.0,0.54583327]
[1746722217866,0.45217428,101100.0,101090.0,0.53594169]
[1746722218202,0.44228397,101100.0,101090.0,0.54583318]
[1746722218989,0.44228397,101100.0,101090.0,0.56183318]
[1746722219348,0.45217438,101100.0,101090.0,0.53594169]
[1746722219557,0.44228397,101100.0,101090.0,0.54583337]
[1746722219758,0.45217448,101100.0,101090.0,0.54583337]
[1746722220159,0.44228397,101100.0,101090.0,0.55572486]
[1746722220819,0.44228397,101100.0,101090.0,0.55572427]
[1746722220971,0.44228397,101100.0,101090.0,0.54583278]
[1746722221177,0.44228397,101100.0,101090.0,0.55572427]
[1746722221520,0.45217428,101100.0,101090.0,0.55572427]
[1746722221731,0.46206469,101100.0,101090.0,0.5359412]
[1746722221977,0.4719552,101100.0,101090.0,0.5359412]
[1746722222187,0.44228397,101100.0,101090.0,0.55572427]
[1746722222394,0.45217448,101100.0,101090.0,0.54583278]
[1746722222804,0.45217438,101100.0,101090.0,0.54583278]
[1746722223023,0.46206498,101100.0,101090.0,0.5359412]
[1746722223430,0.45217438,101100.0,101090.0,0.5359412]
[1746722223713,0.44228397,101100.0,101090.0,0.54583269]
[1746722223943,0.42774312,101100.0,101090.0,0.85967879]
[1746722224162,0.43763343,101100.0,101090.0,0.85967879]
[1746722224383,0.43763343,101100.0,101090.0,0.57683269]
[1746722224626,0.42774312,101100.0,101090.0,0.57683269]
[1746722225250,0.42774312,101100.0,101090.0,0.85967879]
[1746722225664,0.42774312,101100.0,101090.0,0.57683269]
[1746722225839,0.41855144,101100.0,101090.0,0.57683269]
[1746722226305,0.41855144,101100.0,101090.0,0.56083269]
[1746722226949,0.42844175,101100.0,101090.0,0.54583269]
[1746722227155,0.62626588,101100.0,101090.0,0.50626567]
[1746722227334,1.06591113,101100.0,101090.0,0.30842217]
[1746722227802,1.06591113,101100.0,101090.0,0.50626567]
[1746722228007,1.07514103,101100.0,101090.0,0.50626567]
[1746722228213,0.79229493,101100.0,101090.0,0.50626567]
[1746722228626,0.78240413,101100.0,101090.0,0.50626567]
[1746722229809,0.79229493,101100.0,101090.0,0.50626567]
[1746722231194,1.07514103,101100.0,101090.0,0.30842217]
[1746722231408,1.35798713,101100.0,101090.0,0.30842217]
[1746722231617,1.40798713,101100.0,101090.0,0.30842217]
[1746722232029,0.84229493,101100.0,101090.0,0.30842217]
[1746722232236,1.12514103,101100.0,101090.0,0.30146924]
[1746722232595,1.12514103,101100.0,101090.0,0.00618522]
[1746722233010,1.12114103,101100.0,101090.0,0.00618522]
[1746722233208,1.22180795,101100.0,101090.0,0.00618522]
[1746722233422,1.22880795,101100.0,101090.0,0.00618522]
[1746722234007,1.12814103,101100.0,101090.0,0.00618522]
[1746722234810,1.36098713,101100.0,101090.0,0.00618522]
[1746722235011,1.07814103,101100.0,101090.0,0.00618522]
[1746722235636,0.44540413,101100.0,101090.0,0.20402872]
[1746722235857,0.44540413,101100.0,101090.0,0.50618522]
[1746722236066,0.78540413,101100.0,101090.0,0.50618522]
[1746722236420,1.06825023,101100.0,101090.0,0.50618522]
[1746722236788,1.06825023,101100.0,101090.0,0.70402872]
[1746722236952,1.06825023,101100.0,101090.0,0.50618522]
[1746722239121,1.06825023,101100.0,101090.0,0.70402872]
[1746722239243,1.06825023,101100.0,101090.0,0.50618522]
[1746722241431,1.45176325,101100.0,101090.0,0.50618522]
[1746722242050,1.35109633,101100.0,101090.0,0.50618522]
[1746722242577,1.35109633,101100.0,101090.0,0.00618522]
[1746722243100,0.59197476,101080.0,101070.0,0.19787921]
[1746722243299,0.72264168,101080.0,101070.0,0.19787921]
[1746722243506,0.72264168,101080.0,101070.0,0.20406596]
[1746722243507,0.73187158,101080.0,101070.0,0.20406596]
[1746722243706,0.53400841,101080.0,101070.0,0.70406596]
[1746722244066,0.53380551,101080.0,101070.0,0.70406596]
[1746722244270,0.53380551,101080.0,101070.0,0.70506596]
[1746722244479,0.73166946,101080.0,101070.0,0.70506596]
[1746722244721,0.99493304,101080.0,101070.0,0.7050694]
[1746722245804,0.71208694,101080.0,101070.0,0.7050694]
[1746722246561,0.51422348,101080.0,101070.0,0.7050694]
[1746722246786,0.71208655,101080.0,101070.0,0.7050694]
[1746722246950,0.49411584,101080.0,101070.0,0.7050694]
[1746722247154,0.36377075,101080.0,101070.0,0.75095061]
[1746722247355,0.34,101080.0,101070.0,0.76745061]
[1746722247575,0.34989227,101080.0,101070.0,0.76745061]
[1746722247798,0.34,101080.0,101070.0,0.76745061]
[1746722248012,0.11564244,101100.0,101090.0,0.1978435]
[1746722248211,0.11564244,101100.0,101090.0,0.54306494]
[1746722248212,0.07455144,101100.0,101090.0,0.54306494]
[1746722248413,0.07455144,101100.0,101090.0,0.54925169]
[1746722248834,0.07455144,101100.0,101090.0,0.66640559]
[1746722249203,0.07855144,101100.0,101090.0,0.66640559]
[1746722249402,0.07955144,101100.0,101090.0,0.66640559]
[1746722249604,0.07955144,101100.0,101090.0,0.67436746]
[1746722249809,0.07555144,101100.0,101090.0,1.17436746]
[1746722250689,0.07755144,101100.0,101090.0,1.17436746]
[1746722251648,0.07755144,101100.0,101090.0,1.55788048]
[1746722252016,0.07755144,101100.0,101090.0,1.84072658]
[1746722252447,0.07755144,101100.0,101090.0,2.18072658]
[1746722252707,0.07755144,101100.0,101090.0,10.73571858]
[1746722252875,0.07555144,101100.0,101090.0,10.73571858]
[1746722253050,0.07555144,101100.0,101090.0,10.14776558]
[1746722253253,0.07455144,101100.0,101090.0,10.14776558]
[1746722253455,0.00924291,101120.0,101110.0,0.22747384]
[1746722253655,9.313e-05,101120.0,101110.0,0.64298686]
[1746722253851,9.313e-05,101120.0,101110.0,0.64917361]
[1746722254354,9.313e-05,101120.0,101110.0,1.04917361]
[1746722255425,9.313e-05,101120.0,101110.0,1.54917361]
[1746722255629,9.313e-05,101120.0,101110.0,6.59917361]
[1746722256642,9.313e-05,101120.0,101110.0,5.37647361]
[1746722256846,9.313e-05,101120.0,101110.0,2.92967361]
[1746722259026,9.313e-05,101120.0,101110.0,2.24867361]
[1746722260433,9.313e-05,101120.0,101110.0,2.21167361]
[1746722261206,9.313e-05,101120.0,101110.0,1.90177361]
[1746722261613,9.313e-05,101120.0,101110.0,1.88187361]
[1746722262203,9.313e-05,101120.0,101110.0,2.22187361]
[1746722262401,9.313e-05,101120.0,101110.0,2.23187361]
[1746722262675,9.313e-05,101120.0,101110.0,4.46239671]
[1746722262959,9.313e-05,101120.0,101110.0,4.51239671]
[1746722263194,9.313e-05,101120.0,101110.0,4.22955061]
[1746722263388,9.313e-05,101120.0,101110.0,4.33385061]
[1746722263563,9.313e-05,101120.0,101110.0,4.33785061]
[1746722263968,9.313e-05,101120.0,101110.0,2.68790161]
[1746722264722,9.313e-05,101120.0,101110.0,2.69790161]
[1746722265072,9.313e-05,101120.0,101110.0,2.98785761]
[1746722265281,9.313e-05,101120.0,101110.0,3.01057761]
[1746722266143,9.313e-05,101120.0,101110.0,3.30942371]